fUST/lending_fUST_20240226
["ID","MTS","AMOUNT","RATE_DAILY","PERIOD"]
[315199719,1708927839407,-501.61886765,0.00019178,2]
[315199720,1708927839418,-719.22,0.00019178,2]
[315199721,1708927839428,-601.83460681,0.00019178,2]
[315199722,1708927839436,-500.0,0.00019178,2]
[315199723,1708927839446,-500.0,0.00019178,2]
[315199724,1708927839455,-500.0,0.00019178,2]
[315199725,1708927839465,-500.0,0.00019178,2]
[315199726,1708927839474,-500.0,0.00019178,2]
[315199727,1708927839483,-502.97978084,0.00019178,2]
[315199728,1708927839492,-500.0,0.00019178,2]
[315199729,1708927839501,-500.0,0.00019178,2]
[315199730,1708927839510,-500.0,0.00019178,2]
[315199731,1708927839520,-501.61062038,0.00019178,2]
[315199732,1708927839529,-500.0,0.00019178,2]
[315199733,1708927839538,-500.0,0.00019178,2]
[315199734,1708927839547,-500.0,0.00019178,2]
[315199735,1708927839556,-636.92,0.00019178,2]
[315199736,1708927839565,-500.0,0.00019178,2]
[315199737,1708927839574,-500.0,0.00019178,2]
[315199738,1708927839584,-500.0,0.00019178,2]
[315199739,1708927839593,-500.0,0.00019178,2]
[315199740,1708927839602,-500.0,0.00019178,2]
[315199741,1708927839612,-500.0,0.00019178,2]
[315199742,1708927839622,-500.0,0.00019178,2]
[315199743,1708927839631,-417.97011128,0.00019178,2]
[315199744,1708927839640,-500.0,0.00019178,2]
[315199745,1708927839649,-500.0,0.00019178,2]
[315199746,1708927839658,-500.0,0.00019178,2]
[315199747,1708927839667,-500.0,0.00019178,2]
[315199748,1708927839677,-500.85052804,0.00019178,2]
[315199749,1708927839686,-502.56636527,0.00019178,2]
[315199750,1708927839695,-500.0,0.00019178,2]
[315199751,1708927839704,-500.0,0.00019178,2]
[315199752,1708927839713,-500.0,0.00019178,2]
[315199753,1708927839722,-500.0,0.00019178,2]
[315199754,1708927839731,-566.54,0.00019178,2]
[315199755,1708927839741,-500.0,0.00019178,2]
[315199756,1708927839750,-614.77234965,0.00019178,2]
[315199757,1708927839759,-500.0,0.00019178,2]
[315199758,1708927839770,-500.0,0.00019178,2]
[315199759,1708927839784,-500.0,0.00019178,2]
[315199760,1708927839793,-500.0,0.00019178,2]
[315199761,1708927839803,-500.0,0.00019178,2]
[315199762,1708927839812,-500.0,0.00019178,2]
[315199763,1708927839823,-500.0,0.00019178,2]
[315199764,1708927839833,-500.0,0.00019178,2]
[315199765,1708927839843,-500.0,0.00019178,2]
[315199766,1708927839855,-500.0,0.00019178,2]
[315199767,1708927839865,-500.0,0.00019178,2]
[315199768,1708927839874,-501.29341778,0.00019178,2]
[315199769,1708927839883,-500.63508727,0.00019178,2]
[315199770,1708927839892,-500.0,0.00019178,2]
[315199771,1708927839901,-500.0,0.00019178,2]
[315199772,1708927839910,-500.0,0.00019178,2]
[315199773,1708927839919,-500.0,0.00019178,2]
[315199774,1708927839928,-500.0,0.00019178,2]
[315199775,1708927839937,-2222.18,0.00019178,2]
[315199776,1708927839947,-500.0,0.00019178,2]
[315199777,1708927839957,-500.0,0.00019178,2]
[315199778,1708927839966,-500.0,0.00019178,2]
[315199779,1708927839975,-500.0,0.00019178,2]
[315199780,1708927839985,-500.0,0.00019178,2]
[315199781,1708927839994,-500.6043484,0.00019178,2]
[315199782,1708927840004,-500.0,0.00019178,2]
[315199783,1708927840012,-1734.04,0.00019178,2]
[315199784,1708927840021,-500.0,0.00019178,2]
[315199785,1708927840031,-500.0,0.00019178,2]
[315199786,1708927840040,-500.0,0.00019178,2]
[315199787,1708927840049,-500.0,0.00019178,2]
[315199788,1708927840059,-500.0,0.00019178,2]
[315199789,1708927840068,-500.0,0.00019178,2]
[315199790,1708927840076,-500.0,0.00019178,2]
[315199791,1708927840085,-500.0,0.00019178,2]
[315199792,1708927840095,-500.0,0.00019178,2]
[315199793,1708927840104,-500.0,0.00019178,2]
[315199794,1708927840113,-500.0,0.00019178,2]
[315199795,1708927840122,-647.66354051,0.00019178,2]
[315199796,1708927840131,-500.0,0.00019178,2]
[315199797,1708927840141,-500.0,0.00019178,2]
[315199798,1708927840150,-587.29506689,0.00019178,2]
[315199799,1708927840159,-474.48126572,0.00019178,2]
[315199800,1708927840168,-500.0,0.00019178,2]
[315199801,1708927840178,-500.0,0.00019178,2]
[315199802,1708927840187,-500.0,0.00019178,2]
[315199803,1708927840196,-500.0,0.00019178,2]
[315199804,1708927840204,-500.0,0.00019178,2]
[315199805,1708927840214,-500.0,0.00019178,2]
[315199806,1708927840222,-500.0,0.00019178,2]
[315199807,1708927840231,-500.0,0.00019178,2]
[315199808,1708927840241,-976.5,0.00019178,2]
[315199809,1708927840250,-500.0,0.00019178,2]
[315199810,1708927840260,-500.0,0.00019178,2]
[315199811,1708927840269,-500.0,0.00019178,2]
[315199812,1708927840278,-500.0,0.00019178,2]
[315199813,1708927840287,-500.0,0.00019178,2]
[315199814,1708927840296,-500.0,0.00019178,2]
[315199815,1708927840305,-500.0,0.00019178,2]
[315199816,1708927840314,-500.0,0.00019178,2]
[315199817,1708927840324,-544.80572393,0.00019178,2]
[315199818,1708927840333,-500.0,0.00019178,2]
[315199819,1708927840343,-500.0,0.00019178,2]
[315199820,1708927840352,-500.0,0.00019178,2]
[315199821,1708927840361,-500.0,0.00019178,2]
[315199822,1708927840370,-205.48522156,0.00019178,2]
[315199823,1708927840380,-170.14503892,0.00019178,2]
[315199824,1708927840389,-500.0,0.00019178,2]
[315199825,1708927840399,-701.58,0.00019178,2]
[315199826,1708927840408,-291.00212191,0.00019178,2]
[315199827,1708927840418,-500.0,0.00019178,2]
[315199828,1708927840427,-500.0,0.00019178,2]
[315199829,1708927840437,-500.0,0.00019178,2]
[315199830,1708927840447,-500.63998545,0.00019178,2]
[315199831,1708927840456,-1461.44,0.00019178,2]
[315199832,1708927840466,-500.0,0.00019178,2]
[315199833,1708927840475,-2040.15,0.00019178,2]
[315199835,1708927840485,-502.09355324,0.00019178,2]
[315199836,1708927840494,-806.73,0.00019178,2]
[315199837,1708927840503,-500.0,0.00019178,2]
[315199838,1708927840513,-249.09722205,0.00019178,2]
[315199839,1708927840522,-500.35866528,0.00019178,2]
[315199840,1708927840531,-500.0,0.00019178,2]
[315199841,1708927840540,-500.0,0.00019178,2]
[315199842,1708927840550,-500.0,0.00019178,2]
[315199843,1708927840559,-500.0,0.00019178,2]
[315199844,1708927840569,-500.0,0.00019178,2]
[315199845,1708927840579,-501.30905286,0.00019178,2]
[315199847,1708927840588,-2675.42,0.00019178,2]
[315199849,1708927840597,-10236.78,0.00019178,2]
[315199850,1708927840607,-500.0,0.00019178,2]
[315199852,1708927840616,-2536.83,0.00019178,2]
[315199853,1708927840625,-500.0,0.00019178,2]
[315199854,1708927840635,-500.0,0.00019178,2]
[315199855,1708927840644,-500.0,0.00019178,2]
[315199856,1708927840655,-1847.58,0.00019178,2]
[315199857,1708927840664,-543.31285923,0.00019178,2]
[315199858,1708927840674,-500.0,0.00019178,2]
[315199859,1708927840683,-500.0,0.00019178,2]
[315199860,1708927840693,-500.0,0.00019178,2]
[315199861,1708927840702,-500.0,0.00019178,2]
[315199862,1708927840712,-500.0,0.00019178,2]
[315199863,1708927840721,-3921.36,0.00019178,2]
[315199864,1708927840730,-500.43159131,0.00019178,2]
[315199865,1708927840739,-1000.0,0.00019178,2]
[315199866,1708927840749,-506.82130633,0.00019178,2]
[315199867,1708927840758,-500.0,0.00019178,2]
[315199868,1708927840768,-635.83996825,0.00019178,2]
[315199870,1708927840779,-500.0,0.00019178,2]
[315199871,1708927840788,-500.0,0.00019178,2]
[315199872,1708927840798,-500.0,0.00019178,2]
[315199873,1708927840807,-500.0,0.00019178,2]
[315199874,1708927840816,-500.0,0.00019178,2]
[315199875,1708927840825,-510.36105547,0.00019178,2]
[315199876,1708927840834,-1905.33,0.00019178,2]
[315199877,1708927840843,-500.0,0.00019178,2]
[315199878,1708927840855,-1000.0,0.00019178,2]
[315199879,1708927840864,-500.0,0.00019178,2]
[315199880,1708927840873,-500.0,0.00019178,2]
[315199881,1708927840882,-500.20438763,0.00019178,2]
[315199882,1708927840892,-500.0,0.00019178,2]
[315199883,1708927840902,-500.0,0.00019178,2]
[315199884,1708927840911,-20556.62,0.00019178,2]
[315199885,1708927840920,-501.52534223,0.00019178,2]
[315199886,1708927840930,-500.0,0.00019178,2]
[315199887,1708927840940,-500.0,0.00019178,2]
[315199888,1708927840949,-500.0,0.00019178,2]
[315199889,1708927840958,-2003.14,0.00019178,2]
[315199890,1708927840968,-500.0,0.00019178,2]
[315199891,1708927840977,-500.0,0.00019178,2]
[315199892,1708927840986,-500.0,0.00019178,2]
[315199893,1708927840996,-500.0,0.00019178,2]
[315199894,1708927841005,-500.0,0.00019178,2]
[315199895,1708927841014,-500.0,0.00019178,2]
[315199896,1708927841023,-500.0,0.00019178,2]
[315199897,1708927841032,-500.0,0.00019178,2]
[315199898,1708927841041,-500.0,0.00019178,2]
[315199899,1708927841051,-500.0,0.00019178,2]
[315199900,1708927841060,-500.0,0.00019178,2]
[315199901,1708927841069,-631.36,0.00019178,2]
[315199902,1708927841078,-500.0,0.00019178,2]
[315199903,1708927841087,-500.0,0.00019178,2]
[315199904,1708927841096,-500.0,0.00019178,2]
[315199905,1708927841105,-500.0,0.00019178,2]
[315199906,1708927841114,-500.0,0.00019178,2]
[315199907,1708927841123,-500.0,0.00019178,2]
[315199908,1708927841132,-500.0,0.00019178,2]
[315199909,1708927841141,-500.0,0.00019178,2]
[315199910,1708927841150,-500.0,0.00019178,2]
[315199911,1708927841159,-518.49613271,0.00019178,2]
[315199912,1708927841168,-510.91242024,0.00019178,2]
[315199913,1708927841178,-500.0,0.00019178,2]
[315199914,1708927841188,-500.0,0.00019178,2]
[315199915,1708927841197,-500.0,0.00019178,2]
[315199916,1708927841206,-500.0,0.00019178,2]
[315199917,1708927841215,-593.05407186,0.00019178,2]
[315199918,1708927841224,-500.0,0.00019178,2]
[315199919,1708927841233,-500.0,0.00019178,2]
[315199920,1708927841242,-2035.12,0.00019178,2]
[315199921,1708927841251,-501.64126338,0.00019178,2]
[315199922,1708927841260,-1561.53,0.00019178,2]
[315199923,1708927841269,-500.0,0.00019178,2]
[315199924,1708927841278,-501.56333098,0.00019178,2]
[315199925,1708927841287,-500.0,0.00019178,2]
[315199926,1708927841296,-500.0,0.00019178,2]
[315199927,1708927841305,-500.0,0.00019178,2]
[315199928,1708927841314,-7228.24,0.00019178,2]
[315199929,1708927841323,-500.0,0.00019178,2]
[315199930,1708927841333,-500.0,0.00019178,2]
[315199931,1708927841342,-500.0,0.00019178,2]
[315199932,1708927841351,-3986.82,0.00019178,2]
[315199933,1708927841360,-20485.21,0.00019178,2]
[315199934,1708927841369,-500.0,0.00019178,2]
[315199935,1708927841378,-500.0,0.00019178,2]
[315199936,1708927841388,-500.0,0.00019178,2]
[315199937,1708927841397,-776.65,0.00019178,2]
[315199938,1708927841407,-500.0,0.00019178,2]
[315199939,1708927841416,-3188.0,0.00019178,2]
[315199940,1708927841425,-500.0,0.00019178,2]
[315199941,1708927841434,-2266.34,0.00019178,2]
[315199942,1708927841443,-500.0,0.00019178,2]
[315199943,1708927841453,-2701.83,0.00019178,2]
[315199944,1708927841463,-1412.67,0.00019178,2]
[315199945,1708927841472,-500.0,0.00019178,2]
[315199946,1708927841481,-500.0,0.00019178,2]
[315199947,1708927841490,-500.0,0.00019178,2]
[315199948,1708927841499,-500.0,0.00019178,2]
[315199949,1708927841509,-1585.98,0.00019178,2]
[315199950,1708927841518,-640.38620748,0.00019178,2]
[315199951,1708927841527,-1354.39,0.00019178,2]
[315199952,1708927841537,-1138.45,0.00019178,2]
[315199953,1708927841546,-2812.67,0.00019178,2]
[315199954,1708927841555,-702.06,0.00019178,2]
[315199955,1708927841564,-500.0,0.00019178,2]
[315199956,1708927841574,-400.24472666,0.00019178,2]
[315199957,1708927841583,-165.884884,0.00019178,2]
[315199958,1708927841592,-165.222576,0.00019178,2]
[315199959,1708927841602,-4160.0295086,0.00019178,2]
[315199960,1708927841611,-166.666666,0.00019178,2]
[315199961,1708927841620,-500.0,0.00019451,2]
[315199962,1708927841630,-500.0,0.00019451,2]
[315199963,1708927841639,-500.0,0.00019451,2]
[315199964,1708927841648,-500.0,0.00019451,2]
[315199965,1708927841656,-500.0,0.00019452,2]
[315199966,1708927841666,-500.0,0.00019452,2]
[315199967,1708927841675,-500.0,0.00019452,2]
[315199968,1708927841684,-502.22210749,0.00019452,2]
[315199969,1708927841693,-501.28445651,0.00019452,2]
[315199970,1708927841702,-629.6441881,0.00019452,2]
[315199971,1708927841711,-500.0,0.00019452,2]
[315199972,1708927841720,-501.15429221,0.00019452,2]
[315199973,1708927841729,-500.0,0.00019452,2]
[315199974,1708927841738,-500.0,0.00019452,2]
[315199975,1708927841747,-500.0,0.00019452,2]
[315199976,1708927841756,-501.38948075,0.00019452,2]
[315199977,1708927841765,-500.0,0.00019452,2]
[315199978,1708927841774,-501.12589823,0.00019452,2]
[315199979,1708927841787,-266.78686082,0.00019452,2]
[315199980,1708927841796,-500.0,0.00019452,2]
[315199981,1708927841804,-1295.14,0.00019452,2]
[315199982,1708927841814,-500.0,0.00019452,2]
[315199983,1708927841825,-501.43554536,0.00019452,2]
[315199984,1708927841834,-500.0,0.00019452,2]
[315199985,1708927841843,-503.07483176,0.00019452,2]
[315199986,1708927841852,-500.0,0.00019452,2]
[315199987,1708927841861,-500.0,0.00019452,2]
[315199988,1708927841870,-500.0,0.00019452,2]
[315199989,1708927841879,-500.0,0.00019452,2]
[315199990,1708927841888,-500.0,0.00019452,2]
[315199991,1708927841897,-500.0,0.00019452,2]
[315199992,1708927841906,-500.0,0.00019452,2]
[315199993,1708927841914,-500.0,0.00019452,2]
[315199994,1708927841924,-500.0,0.00019452,2]
[315199995,1708927841933,-500.0,0.00019452,2]
[315199996,1708927841942,-405.80118565,0.00019452,2]
[315199997,1708927841950,-500.0,0.00019452,2]
[315199998,1708927841960,-500.0,0.00019452,2]
[315199999,1708927841969,-500.0,0.00019452,2]
[315200000,1708927841979,-501.82744386,0.00019452,2]
[315200001,1708927841988,-503.89798039,0.00019452,2]
[315200002,1708927841997,-1674.04,0.00019452,2]
[315200003,1708927842006,-502.41746543,0.00019452,2]
[315200004,1708927842015,-719.22,0.00019452,2]
[315200005,1708927842023,-500.0,0.00019452,2]
[315200006,1708927842033,-500.0,0.00019452,2]
[315200007,1708927842042,-500.0,0.00019452,2]
[315200008,1708927842051,-505.83665894,0.00019452,2]
[315200009,1708927842153,-500.0,0.00019452,2]
[315200010,1708927842163,-507.460159,0.00019452,2]
[315200011,1708927842173,-536.2492443,0.00019452,2]
[315200012,1708927842182,-500.0,0.00019452,2]
[315200013,1708927842191,-501.48262876,0.00019452,2]
[315200014,1708927842200,-636.92,0.00019452,2]
[315200015,1708927842209,-500.0,0.00019452,2]
[315200016,1708927842218,-642.78312211,0.00019452,2]
[315200017,1708927842227,-399.1209651,0.00019452,2]
[315200018,1708927842236,-500.0,0.00019452,2]
[315200019,1708927842245,-500.0,0.00019452,2]
[315200020,1708927842255,-500.0,0.00019452,2]
[315200021,1708927842264,-500.0,0.00019452,2]
[315200022,1708927842274,-502.20415089,0.00019452,2]
[315200023,1708927842283,-500.0,0.00019452,2]
[315200024,1708927842293,-503.13338535,0.00019452,2]
[315200025,1708927842302,-438.04326599,0.00019452,2]
[315200026,1708927842311,-500.0,0.00019452,2]
[315200027,1708927842320,-500.0,0.00019452,2]
[315200028,1708927842329,-566.54,0.00019452,2]
[315200029,1708927842339,-502.89262175,0.00019452,2]
[315200030,1708927842348,-500.0,0.00019452,2]
[315200031,1708927842357,-500.0,0.00019452,2]
[315200032,1708927842366,-503.86862046,0.00019452,2]
[315200033,1708927842376,-504.12794573,0.00019452,2]
[315200034,1708927842385,-500.0,0.00019452,2]
[315200035,1708927842394,-588.75636197,0.00019452,2]
[315200036,1708927842403,-500.0,0.00019452,2]
[315200037,1708927842413,-500.0,0.00019452,2]
[315200038,1708927842422,-500.0,0.00019452,2]
[315200039,1708927842432,-500.0,0.00019452,2]
[315200040,1708927842440,-500.0,0.00019452,2]
[315200041,1708927842449,-500.0,0.00019452,2]
[315200042,1708927842459,-500.89874379,0.00019452,2]
[315200043,1708927842468,-500.0,0.00019452,2]
[315200044,1708927842477,-2222.18,0.00019452,2]
[315200045,1708927842486,-500.79176669,0.00019452,2]
[315200046,1708927842496,-500.94944783,0.00019452,2]
[315200047,1708927842505,-501.23396073,0.00019452,2]
[315200048,1708927842514,-500.0,0.00019452,2]
[315200049,1708927842523,-209.81817441,0.00019452,2]
[315200050,1708927842533,-1734.04,0.00019452,2]
[315200051,1708927842542,-500.0,0.00019452,2]
[315200052,1708927842552,-500.0,0.00019452,2]
[315200053,1708927842561,-500.0,0.00019452,2]
[315200054,1708927842571,-436.57904397,0.00019452,2]
[315200055,1708927842580,-503.09460402,0.00019452,2]
[315200056,1708927842589,-500.0,0.00019452,2]
[315200057,1708927842598,-500.0,0.00019452,2]
[315200058,1708927842607,-500.0,0.00019452,2]
[315200059,1708927842616,-500.0,0.00019452,2]
[315200060,1708927842626,-500.0,0.00019452,2]
[315200061,1708927842635,-500.0,0.00019452,2]
[315200062,1708927842645,-500.0,0.00019452,2]
[315200063,1708927842654,-278.92397509,0.00019452,2]
[315200064,1708927842663,-500.0,0.00019452,2]
[315200065,1708927842672,-378.09595608,0.00019452,2]
[315200066,1708927842682,-500.0,0.00019452,2]
[315200067,1708927842691,-500.0,0.00019452,2]
[315200068,1708927842700,-500.0,0.00019452,2]
[315200069,1708927842710,-500.0,0.00019452,2]
[315200070,1708927842719,-500.0,0.00019452,2]
[315200071,1708927842728,-976.5,0.00019452,2]
[315200072,1708927842737,-500.0,0.00019452,2]
[315200073,1708927842746,-500.0,0.00019452,2]
[315200074,1708927842755,-500.0,0.00019452,2]
[315200075,1708927842765,-500.0,0.00019452,2]
[315200076,1708927842774,-500.0,0.00019452,2]
[315200077,1708927842786,-500.0,0.00019452,2]
[315200078,1708927842795,-500.0,0.00019452,2]
[315200079,1708927842804,-500.85128667,0.00019452,2]
[315200080,1708927842813,-500.0,0.00019452,2]
[315200081,1708927842822,-500.0,0.00019452,2]
[315200082,1708927842831,-500.0,0.00019452,2]
[315200083,1708927842840,-500.0,0.00019452,2]
[315200084,1708927842849,-701.58,0.00019452,2]
[315200085,1708927842860,-500.0,0.00019452,2]
[315200086,1708927842869,-500.0,0.00019452,2]
[315200087,1708927842879,-1461.44,0.00019452,2]
[315200088,1708927842888,-500.0,0.00019452,2]
[315200089,1708927842897,-2040.15,0.00019452,2]
[315200090,1708927842906,-806.73,0.00019452,2]
[315200091,1708927842915,-500.0,0.00019452,2]
[315200092,1708927842924,-238.73773781,0.00019452,2]
[315200093,1708927842933,-500.0,0.00019452,2]
[315200095,1708927842942,-500.0,0.00019452,2]
[315200096,1708927842952,-500.0,0.00019452,2]
[315200097,1708927842961,-2675.42,0.00019452,2]
[315200101,1708927842971,-500.0,0.00019452,2]
[315200104,1708927842980,-10236.78,0.00019452,2]
[315200105,1708927842990,-2536.83,0.00019452,2]
[315200107,1708927842999,-500.0,0.00019452,2]
[315200110,1708927843009,-500.0,0.00019452,2]
[315200112,1708927843018,-500.0,0.00019452,2]
[315200114,1708927843027,-1847.58,0.00019452,2]
[315200116,1708927843036,-500.0,0.00019452,2]
[315200118,1708927843045,-500.0,0.00019452,2]
[315200120,1708927843054,-500.0,0.00019452,2]
[315200123,1708927843063,-442.24473459,0.00019452,2]
[315200126,1708927843073,-249.10033961,0.00019452,2]
[315200128,1708927843082,-3921.36,0.00019452,2]
[315200130,1708927843091,-1000.0,0.00019452,2]
[315200132,1708927843100,-500.0,0.00019452,2]
[315200135,1708927843109,-500.0,0.00019452,2]
[315200137,1708927843118,-500.0,0.00019452,2]
[315200139,1708927843127,-500.81546176,0.00019452,2]
[315200141,1708927843135,-500.0,0.00019452,2]
[315200142,1708927843145,-487.01483259,0.00019452,2]
[315200144,1708927843154,-1905.33,0.00019452,2]
[315200146,1708927843163,-500.0,0.00019452,2]
[315200147,1708927843173,-1005.8616059,0.00019452,2]
[315200148,1708927843182,-500.0,0.00019452,2]
[315200149,1708927843192,-500.0,0.00019452,2]
[315200151,1708927843201,-238.35007482,0.00019452,2]
[315200153,1708927843211,-500.0,0.00019452,2]
[315200155,1708927843220,-20556.62,0.00019452,2]
[315200157,1708927843229,-500.0,0.00019452,2]
[315200159,1708927843238,-500.0,0.00019452,2]
[315200161,1708927843247,-500.0,0.00019452,2]
[315200163,1708927843256,-2003.14,0.00019452,2]
[315200165,1708927843265,-500.0,0.00019452,2]
[315200166,1708927843274,-500.0,0.00019452,2]
[315200167,1708927843283,-500.0,0.00019452,2]
[315200168,1708927843292,-470.37536287,0.00019452,2]
[315200169,1708927843302,-436.52101816,0.00019452,2]
[315200170,1708927843310,-500.0,0.00019452,2]
[315200171,1708927843320,-503.26279382,0.00019452,2]
[315200172,1708927843329,-500.0,0.00019452,2]
[315200173,1708927843338,-501.32910414,0.00019452,2]
[315200174,1708927843348,-631.36,0.00019452,2]
[315200175,1708927843357,-500.0,0.00019452,2]
[315200176,1708927843366,-500.0,0.00019452,2]
[315200178,1708927843375,-500.0,0.00019452,2]
[315200179,1708927843384,-507.00886275,0.00019452,2]
[315200180,1708927843393,-500.87195388,0.00019452,2]
[315200181,1708927843403,-500.0,0.00019452,2]
[315200182,1708927843412,-500.0,0.00019452,2]
[315200183,1708927843421,-500.0,0.00019452,2]
[315200185,1708927843432,-500.0,0.00019452,2]
[315200187,1708927843441,-500.0,0.00019452,2]
[315200189,1708927843451,-509.9265336,0.00019452,2]
[315200191,1708927843460,-2035.12,0.00019452,2]
[315200193,1708927843469,-1561.53,0.00019452,2]
[315200195,1708927843478,-500.0,0.00019452,2]
[315200197,1708927843487,-500.0,0.00019452,2]
[315200199,1708927843496,-502.36151926,0.00019452,2]
[315200201,1708927843505,-7228.24,0.00019452,2]
[315200203,1708927843514,-500.0,0.00019452,2]
[315200204,1708927843523,-500.0,0.00019452,2]
[315200205,1708927843532,-3986.82,0.00019452,2]
[315200206,1708927843541,-20485.21,0.00019452,2]
[315200207,1708927843550,-500.0,0.00019452,2]
[315200208,1708927843559,-500.0,0.00019452,2]
[315200209,1708927843568,-500.0,0.00019452,2]
[315200210,1708927843578,-776.65,0.00019452,2]
[315200211,1708927843587,-500.0,0.00019452,2]
[315200212,1708927843597,-3188.0,0.00019452,2]
[315200213,1708927843606,-500.0,0.00019452,2]
[315200214,1708927843614,-2266.34,0.00019452,2]
[315200215,1708927843624,-2701.83,0.00019452,2]
[315200216,1708927843633,-1412.67,0.00019452,2]
[315200217,1708927843642,-478.11316382,0.00019452,2]
[315200218,1708927843651,-500.0,0.00019452,2]
[315200219,1708927843660,-1585.98,0.00019452,2]
[315200220,1708927843669,-1354.39,0.00019452,2]
[315200221,1708927843678,-1138.45,0.00019452,2]
[315200222,1708927843687,-2812.67,0.00019452,2]
[315200223,1708927843697,-702.06,0.00019452,2]
[315200224,1708927843706,-500.0,0.00019452,2]
[315200225,1708927843715,-182.85476532,0.00019463,2]
[315200226,1708927843725,-7330.41372259,0.00019464,2]
[315200227,1708927843734,-7330.41372259,0.00019465,2]
[315200228,1708927843743,-182.85476532,0.00019487,2]
[315200229,1708927843753,-7330.41372259,0.00019487,2]
[315200230,1708927843761,-182.85476532,0.00019495,2]
[315200231,1708927843771,-153.0,0.000195,2]
[315200232,1708927843783,-200.5826354,0.000195,2]
[315200233,1708927843793,-153.0,0.000195,2]
[315200234,1708927843802,-153.0,0.000195,2]
[315200235,1708927843811,-153.0,0.000195,2]
[315200236,1708927843820,-200.5826354,0.000195,2]
[315200237,1708927843829,-153.0,0.000195,2]
[315200238,1708927843838,-153.0,0.000195,2]
[315200239,1708927843847,-431.2948905,0.000195,2]
[315200240,1708927843858,-200.5826354,0.000195,2]
[315200241,1708927843867,-153.0,0.000195,2]
[315200242,1708927843876,-200.5826354,0.000195,2]
[315200243,1708927843885,-380.9162986,0.000195,2]
[315200244,1708927843894,-200.5826354,0.000195,2]
[315200245,1708927843904,-200.5826354,0.000195,2]
[315200246,1708927843913,-200.5826354,0.000195,2]
[315200247,1708927843921,-306.0,0.000195,2]
[315200248,1708927843932,-200.5826354,0.000195,2]
[315200249,1708927843941,-201.13960911,0.00019626,3]
[315200250,1708927843950,-3232.05010345,0.00019626,2]
[315200251,1708927843960,-166.666666,0.00019627,2]
[315200252,1708927843969,-200.5826354,0.000197,2]
[315200253,1708927843978,-200.5826354,0.000197,2]
[315200254,1708927843987,-5529.96122929,0.000197,2]
[315200255,1708927843996,-5529.96122929,0.000197,2]
[315200256,1708927844006,-5529.96122929,0.000197,2]
[315200257,1708927844015,-500.0,0.00019725,2]
[315200258,1708927844024,-500.0,0.00019725,2]
[315200259,1708927844034,-500.0,0.00019725,2]
[315200260,1708927844044,-500.0,0.00019726,2]
[315200261,1708927844052,-501.7897385,0.00019726,2]
[315200262,1708927844061,-581.87051322,0.00019726,2]
[315200263,1708927844071,-500.0,0.00019726,2]
[315200264,1708927844080,-500.0,0.00019726,2]
[315200265,1708927844089,-500.0,0.00019726,2]
[315200266,1708927844099,-500.0,0.00019726,2]
[315200267,1708927844108,-1295.14,0.00019726,2]
[315200268,1708927844117,-500.0,0.00019726,2]
[315200269,1708927844126,-500.0,0.00019726,2]
[315200270,1708927844136,-500.0,0.00019726,2]